fUSD/lending_fUSD_20260515
["ID","MTS","AMOUNT","RATE_DAILY","PERIOD"]
[422314614,1778815839000,-151.0,0.0001795,2]
[422314612,1778815839000,-500.0,0.0001795,2]
[422314611,1778815839000,-500.0,0.0001795,2]
[422314601,1778815839000,-500.0,0.0001795,2]
[422314617,1778815839000,-500.0,0.0001795,2]
[422314603,1778815839000,-151.0,0.0001795,2]
[422314632,1778815839000,-500.0,0.0001795,2]
[422314626,1778815839000,-151.0,0.0001795,2]
[422314649,1778815839000,-151.0,0.0001795,2]
[422314634,1778815839000,-500.0,0.0001795,2]
[422314646,1778815839000,-500.0,0.0001795,2]
[422314645,1778815839000,-500.0,0.0001795,2]
[422314647,1778815839000,-500.0,0.0001795,2]
[422314638,1778815839000,-500.0,0.0001795,2]
[422314643,1778815839000,-500.0,0.0001795,2]
[422314650,1778815839000,-151.0,0.0001795,2]
[422314636,1778815839000,-500.0,0.0001795,2]
[422314639,1778815839000,-500.0,0.0001795,2]
[422314641,1778815839000,-500.0,0.0001795,2]
[422314662,1778815839000,-151.0,0.0001795,2]
[422314610,1778815839000,-151.0,0.0001795,2]
[422314622,1778815839000,-500.0,0.0001795,2]
[422314608,1778815839000,-151.0,0.0001795,2]
[422314574,1778815839000,-500.0,0.0001795,2]
[422314607,1778815839000,-500.0,0.0001795,2]
[422314652,1778815839000,-151.0,0.0001795,2]
[422314552,1778815839000,-162.87232468,0.00017949,2]
[422314554,1778815839000,-500.0,0.00017949,2]
[422314555,1778815839000,-500.0,0.00017949,2]
[422314559,1778815839000,-530.82365375,0.00017949,2]
[422314557,1778815839000,-500.0,0.00017949,2]
[422314566,1778815839000,-200.0,0.0001795,2]
[422314562,1778815839000,-578.20924308,0.0001795,2]
[422314564,1778815839000,-187.78006525,0.0001795,2]
[422314568,1778815839000,-500.0,0.0001795,2]
[422314570,1778815839000,-1280.88388878,0.0001795,2]
[422314576,1778815839000,-646.65982734,0.0001795,2]
[422314605,1778815839000,-500.0,0.0001795,2]
[422314572,1778815839000,-151.0,0.0001795,2]
[422314586,1778815839000,-151.0,0.0001795,2]
[422314582,1778815839000,-151.0,0.0001795,2]
[422314578,1778815839000,-151.0,0.0001795,2]
[422314584,1778815839000,-500.0,0.0001795,2]
[422314588,1778815839000,-500.0,0.0001795,2]
[422314590,1778815839000,-151.0,0.0001795,2]
[422314592,1778815839000,-500.0,0.0001795,2]
[422314594,1778815839000,-151.0,0.0001795,2]
[422314596,1778815839000,-500.0,0.0001795,2]
[422314606,1778815839000,-151.0,0.0001795,2]
[422314598,1778815839000,-151.0,0.0001795,2]
[422314609,1778815839000,-151.0,0.0001795,2]
[422314580,1778815839000,-500.0,0.0001795,2]
[422314651,1778815839000,-151.0,0.0001795,2]
[422314648,1778815839000,-1865.36488657,0.0001795,2]
[422314654,1778815839000,-151.0,0.0001795,2]
[422314685,1778815839000,-968.40210584,0.000182,2]
[422314687,1778815839000,-2168.01736327,0.00018265,2]
[422314690,1778815839000,-151.0,0.0001839,2]
[422314691,1778815839000,-968.40210584,0.000184,2]
[422314698,1778815839000,-181.08010149,0.00018498,2]
[422314689,1778815839000,-151.0,0.00018335,2]
[422314688,1778815839000,-151.0,0.0001828,2]
[422314694,1778815839000,-194.72792766,0.00018498,2]
[422314697,1778815839000,-1934.38338737,0.00018498,2]
[422314692,1778815839000,-2258.3,0.0001841,2]
[422314695,1778815839000,-200.0,0.00018498,2]
[422314693,1778815839000,-151.0,0.00018445,2]
[422314678,1778815839000,-504.94803189,0.00018048,2]
[422314696,1778815839000,-1328.27659266,0.00018498,2]
[422314699,1778815839000,-194.72792766,0.00018498,2]
[422314710,1778815839000,-300.0,0.00018999,2]
[422314708,1778815839000,-968.40210584,0.000187,2]
[422314709,1778815839000,-500.0,0.00018894,2]
[422314707,1778815839000,-151.0,0.00018665,2]
[422314703,1778815839000,-500.0,0.00018589,2]
[422314706,1778815839000,-164.16086875,0.00018631,2]
[422314704,1778815839000,-500.0,0.00018589,2]
[422314701,1778815839000,-151.0,0.000185,2]
[422314705,1778815839000,-151.0,0.0001861,2]
[422314712,1778815839000,-690.56488704,0.00018999,2]
[422314653,1778815839000,-151.0,0.0001795,2]
[422314702,1778815839000,-151.0,0.00018555,2]
[422314683,1778815839000,-2000.0,0.00018119,2]
[422314700,1778815839000,-968.40210584,0.000185,2]
[422314677,1778815839000,-151.0,0.00018005,2]
[422314681,1778815839000,-151.0,0.0001806,2]
[422314655,1778815839000,-151.0,0.0001795,2]
[422314656,1778815839000,-151.0,0.0001795,2]
[422314657,1778815839000,-151.0,0.0001795,2]
[422314661,1778815839000,-151.0,0.0001795,2]
[422314659,1778815839000,-174.61919141,0.0001795,2]
[422314660,1778815839000,-151.0,0.0001795,2]
[422314658,1778815839000,-151.0,0.0001795,2]
[422314663,1778815839000,-151.0,0.0001795,2]
[422314665,1778815839000,-151.0,0.0001795,2]
[422314666,1778815839000,-187.78006525,0.0001795,2]
[422314668,1778815839000,-151.0,0.0001795,2]
[422314667,1778815839000,-151.0,0.0001795,2]
[422314711,1778815839000,-300.0,0.00018999,2]
[422314674,1778815839000,-350.0,0.00018,2]
[422314684,1778815839000,-151.0,0.0001817,2]
[422314673,1778815839000,-219.23011725,0.0001795,2]
[422314679,1778815839000,-500.0,0.00018048,2]
[422314682,1778815839000,-151.0,0.00018115,2]
[422314680,1778815839000,-500.0,0.00018048,2]
[422314676,1778815839000,-202.69,0.00018,2]
[422314686,1778815839000,-151.0,0.00018225,2]
[422314675,1778815839000,-968.40210584,0.00018,2]
[422314670,1778815839000,-151.0,0.0001795,2]
[422314664,1778815839000,-151.0,0.0001795,2]
[422314669,1778815839000,-151.0,0.0001795,2]
[422314671,1778815839000,-187.78006525,0.0001795,2]
[422314672,1778815839000,-211.40802048,0.0001795,2]
[422314740,1778815840000,-1428.38747117,0.00019594,2]
[422314733,1778815840000,-545.85460464,0.00019514,2]
[422314732,1778815840000,-1466.25518156,0.00019514,2]
[422314736,1778815840000,-613.37132232,0.00019514,2]
[422314737,1778815840000,-1322624.53833028,0.00019514,2]
[422314731,1778815840000,-339.05176003,0.00019514,2]
[422314738,1778815840000,-209.40437684,0.00019594,2]
[422314746,1778815840000,-1472.86,0.00019726,10]
[422314741,1778815840000,-194.72792766,0.00019594,2]
[422314742,1778815840000,-209.40437684,0.00019594,2]
[422314745,1778815840000,-500.0,0.00019721,2]
[422314743,1778815840000,-1224.98,0.000196,2]
[422314730,1778815840000,-4730.75089867,0.00019514,2]
[422314744,1778815840000,-300.0,0.00019635,2]
[422314739,1778815840000,-200.0,0.00019594,2]
[422314725,1778815840000,-164.58286259,0.00019233,2]
[422314718,1778815840000,-649.44525179,0.00019046,2]
[422314727,1778815840000,-194.72792766,0.00019319,2]
[422314747,1778815840000,-300.0,0.00019999,2]
[422314713,1778815840000,-300.0,0.00018999,2]
[422314714,1778815840000,-271.42901487,0.00019033,2]
[422314720,1778815840000,-201.93286099,0.00019046,2]
[422314717,1778815840000,-1377.42282659,0.00019046,2]
[422314716,1778815840000,-200.0,0.00019046,2]
[422314726,1778815840000,-300.0,0.00019237,2]
[422314715,1778815840000,-201.93286099,0.00019046,2]
[422314719,1778815840000,-187.78006525,0.00019046,2]
[422314722,1778815840000,-240.44,0.00019209,2]
[422314728,1778815840000,-429.0588052,0.00019494,3]
[422314724,1778815840000,-308.45878197,0.00019233,2]
[422314723,1778815840000,-300.0,0.00019233,2]
[422314729,1778815840000,-169680.1779025,0.00019514,2]
[422314721,1778815840000,-500.0,0.00019147,2]
[422314755,1778815840000,-584.0,0.0002,2]
[422314754,1778815840000,-249.0,0.0002,2]
[422314750,1778815840000,-1980.0,0.0002,2]
[422314764,1778815840000,-2168.01736327,0.00020091,2]
[422314768,1778815840000,-200.0,0.00020142,2]
[422314774,1778815840000,-500.0,0.00020313,2]
[422314775,1778815840000,-2258.3,0.00020381,2]
[422314772,1778815840000,-1493.91,0.00020145,2]
[422314773,1778815840000,-447.0,0.00020233,5]
[422314776,1778815840000,-21801.77,0.00020548,2]
[422314778,1778815840000,-599.60298507,0.00020689,2]
[422314782,1778815840000,-209.40437684,0.0002069,2]
[422314779,1778815840000,-670.58624095,0.00020689,2]
[422314777,1778815840000,-257.36139981,0.00020688,2]
[422314783,1778815840000,-225.18697532,0.0002069,2]
[422314780,1778815840000,-225.18697532,0.0002069,2]
[422314784,1778815840000,-586.0291946,0.00020882,2]
[422314753,1778815840000,-205.0,0.0002,2]
[422314769,1778815840000,-1481.23780761,0.00020142,2]
[422314771,1778815840000,-217.15233878,0.00020142,2]
[422314781,1778815840000,-200.0,0.0002069,2]
[422314765,1778815840000,-164.16086875,0.00020131,2]
[422314756,1778815840000,-2931.0,0.0002,2]
[422314762,1778815840000,-430.0,0.0002,2]
[422314752,1778815840000,-500.0,0.0002,2]
[422314751,1778815840000,-150.0,0.0002,2]
[422314748,1778815840000,-400.0,0.0002,2]
[422314757,1778815840000,-3787.0,0.0002,2]
[422314758,1778815840000,-358.0,0.0002,2]
[422314749,1778815840000,-8775.0,0.0002,2]
[422314760,1778815840000,-132293.12,0.0002,2]
[422314763,1778815840000,-293.593496,0.00020002,2]
[422314759,1778815840000,-823.0,0.0002,2]
[422314767,1778815840000,-217.15233878,0.00020142,2]
[422314761,1778815840000,-153.68370957,0.0002,20]
[422314770,1778815840000,-201.93286099,0.00020142,2]
[422314766,1778815840000,-2000.0,0.00020132,2]
[422314816,1778815841000,-800.0,0.00021918,2]
[422314820,1778815841000,-800.0,0.00021918,2]
[422314817,1778815841000,-800.0,0.00021918,2]
[422314813,1778815841000,-164.39,0.00021853,2]
[422314818,1778815841000,-800.0,0.00021918,2]
[422314814,1778815841000,-5000.0,0.00021918,2]
[422314812,1778815841000,-242.15909246,0.00021786,2]
[422314826,1778815841000,-800.0,0.00021918,2]
[422314822,1778815841000,-800.0,0.00021918,2]
[422314815,1778815841000,-800.0,0.00021918,2]
[422314823,1778815841000,-800.0,0.00021918,2]
[422314836,1778815841000,-150.0,0.00021918,2]
[422314835,1778815841000,-987.85294539,0.00021918,2]
[422314827,1778815841000,-800.0,0.00021918,2]
[422314825,1778815841000,-800.0,0.00021918,2]
[422314828,1778815841000,-800.0,0.00021918,2]
[422314824,1778815841000,-800.0,0.00021918,2]
[422314829,1778815841000,-800.0,0.00021918,2]
[422314832,1778815841000,-150.0,0.00021918,2]
[422314833,1778815841000,-166.39593959,0.00021918,3]
[422314831,1778815841000,-800.0,0.00021918,2]
[422314845,1778815841000,-150.0,0.00021918,2]
[422314821,1778815841000,-800.0,0.00021918,2]
[422314830,1778815841000,-800.0,0.00021918,2]
[422314810,1778815841000,-200.0,0.00021786,2]
[422314786,1778815841000,-603.97432624,0.00020907,2]
[422314804,1778815841000,-695.0,0.00021427,2]
[422314838,1778815841000,-150.0,0.00021918,2]
[422314785,1778815841000,-500.0,0.00020907,2]
[422314795,1778815841000,-358.0,0.00021,2]
[422314796,1778815841000,-823.0,0.00021,2]
[422314793,1778815841000,-2931.0,0.00021,2]
[422314788,1778815841000,-328.8,0.0002094,2]
[422314787,1778815841000,-500.0,0.00020922,2]
[422314791,1778815841000,-249.0,0.00021,2]
[422314790,1778815841000,-205.0,0.00021,2]
[422314789,1778815841000,-271.42901487,0.00020953,2]
[422314792,1778815841000,-584.0,0.00021,2]
[422314811,1778815841000,-225.18697532,0.00021786,2]
[422314794,1778815841000,-3787.0,0.00021,2]
[422314809,1778815841000,-242.15909246,0.00021786,2]
[422314799,1778815841000,-200.0,0.00021238,2]
[422314800,1778815841000,-217.15233878,0.00021238,2]
[422314797,1778815841000,-430.0,0.00021,2]
[422314808,1778815841000,-803.0,0.00021673,2]
[422314801,1778815841000,-233.51889341,0.00021238,2]
[422314802,1778815841000,-225.71274503,0.00021238,2]
[422314803,1778815841000,-556.0,0.00021247,2]
[422314807,1778815841000,-164.16086875,0.00021631,2]
[422314806,1778815841000,-1224.98,0.000216,2]
[422314805,1778815841000,-500.0,0.0002155,2]
[422314798,1778815841000,-233.51889341,0.00021238,2]
[422314847,1778815841000,-450.0,0.00022,2]
[422314867,1778815841000,-744.59,0.00022466,2]
[422314837,1778815841000,-150.0,0.00021918,2]
[422314873,1778815841000,-159.0,0.00022625,2]
[422314865,1778815841000,-2258.3,0.00022353,2]
[422314868,1778815841000,-1755.16548041,0.00022483,2]
[422314871,1778815841000,-159.0,0.00022625,2]
[422314877,1778815841000,-500.0,0.00022862,2]
[422314880,1778815841000,-242.15909246,0.00022882,2]
[422314876,1778815841000,-243.66,0.00022633,2]
[422314878,1778815841000,-271.42901487,0.00022872,2]
[422314879,1778815841000,-200.0,0.00022882,2]
[422314881,1778815841000,-221.38633115,0.00022882,2]
[422314882,1778815841000,-200.0,0.00023,30]
[422314869,1778815841000,-373.0,0.000226,3]
[422314883,1778815841000,-6620.0,0.00023,2]
[422314890,1778815841000,-584.0,0.00023,2]
[422314892,1778815841000,-3787.0,0.00023,2]
[422314885,1778815841000,-200.0,0.00023,30]
[422314888,1778815841000,-249.0,0.00023,2]
[422314894,1778815841000,-823.0,0.00023,2]
[422314889,1778815841000,-363.0,0.00023,30]
[422314887,1778815841000,-205.0,0.00023,2]
[422314891,1778815841000,-2931.0,0.00023,2]
[422314893,1778815841000,-358.0,0.00023,2]
[422314846,1778815841000,-163.69546163,0.00021918,2]
[422314895,1778815841000,-167.0,0.00023,30]
[422314886,1778815841000,-200.0,0.00023,30]
[422314866,1778815841000,-500.0,0.00022422,2]
[422314884,1778815841000,-200.0,0.00023,30]
[422314870,1778815841000,-156.62,0.00022603,2]
[422314848,1778815841000,-205.0,0.00022,2]
[422314841,1778815841000,-150.0,0.00021918,2]
[422314872,1778815841000,-159.0,0.00022625,2]
[422314840,1778815841000,-150.0,0.00021918,2]
[422314839,1778815841000,-150.0,0.00021918,2]
[422314843,1778815841000,-150.0,0.00021918,2]
[422314844,1778815841000,-150.0,0.00021918,2]
[422314849,1778815841000,-249.0,0.00022,2]
[422314850,1778815841000,-584.0,0.00022,2]
[422314853,1778815841000,-358.0,0.00022,2]
[422314851,1778815841000,-2931.0,0.00022,2]
[422314860,1778815841000,-500.0,0.00022196,2]
[422314854,1778815841000,-1031.68,0.00022,2]
[422314852,1778815841000,-3787.0,0.00022,2]
[422314858,1778815841000,-430.0,0.00022,2]
[422314861,1778815841000,-218.77679971,0.00022334,2]
[422314857,1778815841000,-194.40890239,0.00022,3]
[422314855,1778815841000,-195.89,0.00022,2]
[422314856,1778815841000,-823.0,0.00022,2]
[422314859,1778815841000,-2000.0,0.00022145,2]
[422314862,1778815841000,-200.0,0.00022334,2]
[422314864,1778815841000,-251.11897888,0.00022334,2]
[422314874,1778815841000,-159.0,0.00022625,2]
[422314875,1778815841000,-159.0,0.00022625,2]
[422314863,1778815841000,-233.51889341,0.00022334,2]
[422314941,1778815842000,-159.0,0.00023,30]
[422314944,1778815842000,-215.94512088,0.00023078,3]
[422314939,1778815842000,-159.0,0.00023,30]
[422314934,1778815842000,-159.0,0.00023,30]
[422314933,1778815842000,-159.0,0.00023,30]
[422314920,1778815842000,-154.0,0.00023,30]
[422314930,1778815842000,-159.0,0.00023,30]
[422314926,1778815842000,-159.0,0.00023,30]
[422314929,1778815842000,-159.0,0.00023,30]
[422314924,1778815842000,-154.0,0.00023,30]
[422314935,1778815842000,-159.0,0.00023,30]
[422314927,1778815842000,-159.0,0.00023,30]
[422314942,1778815842000,-159.0,0.00023,30]
[422314954,1778815842000,-150.0,0.00023671,2]
[422314940,1778815842000,-159.0,0.00023,30]
[422314937,1778815842000,-159.0,0.00023,30]
[422314936,1778815842000,-159.0,0.00023,30]
[422314943,1778815842000,-430.0,0.00023,2]
[422314956,1778815842000,-166.66,0.0002395,30]
[422314946,1778815842000,-5530.0,0.000232,5]
[422314952,1778815842000,-193.96341392,0.00023539,3]
[422314945,1778815842000,-164.16086875,0.00023131,2]
[422314948,1778815842000,-695.39793187,0.00023428,2]
[422314949,1778815842000,-200.0,0.0002343,2]
[422314951,1778815842000,-1224.98,0.000235,7]
[422314928,1778815842000,-159.0,0.00023,30]
[422314947,1778815842000,-621.78829552,0.00023428,2]
[422314938,1778815842000,-159.0,0.00023,30]
[422314925,1778815842000,-162.0,0.00023,30]
[422314897,1778815842000,-154.0,0.00023,30]
[422314923,1778815842000,-154.0,0.00023,30]
[422314950,1778815842000,-251.11897888,0.0002343,2]
[422314896,1778815842000,-154.0,0.00023,30]
[422314898,1778815842000,-154.0,0.00023,30]
[422314899,1778815842000,-154.0,0.00023,30]
[422314900,1778815842000,-154.0,0.00023,30]
[422314901,1778815842000,-154.0,0.00023,30]
[422314905,1778815842000,-154.0,0.00023,30]
[422314904,1778815842000,-154.0,0.00023,30]
[422314903,1778815842000,-154.0,0.00023,30]
[422314902,1778815842000,-154.0,0.00023,30]
[422314907,1778815842000,-154.0,0.00023,30]
[422314906,1778815842000,-154.0,0.00023,30]
[422314908,1778815842000,-154.0,0.00023,30]
[422314909,1778815842000,-154.0,0.00023,30]
[422314914,1778815842000,-154.0,0.00023,30]
[422314916,1778815842000,-154.0,0.00023,30]
[422314919,1778815842000,-154.0,0.00023,30]
[422314911,1778815842000,-154.0,0.00023,30]
[422314912,1778815842000,-154.0,0.00023,30]
[422314918,1778815842000,-154.0,0.00023,30]
[422314917,1778815842000,-154.0,0.00023,30]
[422314910,1778815842000,-154.0,0.00023,30]
[422314913,1778815842000,-154.0,0.00023,30]
[422314915,1778815842000,-154.0,0.00023,30]
[422314921,1778815842000,-154.0,0.00023,30]
[422314931,1778815842000,-159.0,0.00023,30]
[422314932,1778815842000,-159.0,0.00023,30]
[422314922,1778815842000,-154.0,0.00023,30]
[422314953,1778815842000,-500.0,0.00023548,2]
[422315015,1778815842000,-2000.0,0.00024776,2]
[422314957,1778815842000,-200.0,0.00023978,2]
[422314993,1778815842000,-1000.0,0.00024658,2]
[422314989,1778815842000,-1254.04,0.0002456,2]
[422314988,1778815842000,-1254.05,0.00024558,2]
[422314992,1778815842000,-164.16086875,0.00024631,2]
[422314983,1778815842000,-270.0455652,0.00024526,2]
[422315006,1778815842000,-2000.0,0.00024776,2]
[422315007,1778815842000,-2000.0,0.00024776,2]
[422314995,1778815842000,-586.0291946,0.00024686,2]
[422315000,1778815842000,-2000.0,0.00024776,2]
[422314998,1778815842000,-2000.0,0.00024776,2]
[422315004,1778815842000,-2000.0,0.00024776,2]
[422314999,1778815842000,-2000.0,0.00024776,2]
[422315005,1778815842000,-2000.0,0.00024776,2]
[422314997,1778815842000,-2000.0,0.00024776,2]
[422315003,1778815842000,-2000.0,0.00024776,2]
[422315001,1778815842000,-2000.0,0.00024776,2]
[422315002,1778815842000,-2000.0,0.00024776,2]
[422315009,1778815842000,-2000.0,0.00024776,2]
[422315008,1778815842000,-2000.0,0.00024776,2]
[422315013,1778815842000,-2000.0,0.00024776,2]
[422315011,1778815842000,-2000.0,0.00024776,2]
[422315010,1778815842000,-2000.0,0.00024776,2]
[422315014,1778815842000,-2000.0,0.00024776,2]
[422315016,1778815842000,-2000.0,0.00024776,2]
[422315017,1778815842000,-271.42901487,0.00024792,2]
[422315012,1778815842000,-2000.0,0.00024776,2]
[422314955,1778815842000,-2168.01736327,0.00023744,2]
[422314994,1778815842000,-685.95,0.00024658,2]
[422314990,1778815842000,-1254.05,0.0002456,2]
[422314996,1778815842000,-156.511,0.00024776,30]
[422314987,1778815842000,-1254.05,0.00024558,2]
[422314961,1778815842000,-249.0,0.00024,2]
[422314962,1778815842000,-584.0,0.00024,2]
[422314959,1778815842000,-500.0,0.00024,2]
[422314966,1778815842000,-823.0,0.00024,2]
[422314963,1778815842000,-2931.0,0.00024,2]
[422314958,1778815842000,-260.4103811,0.00023978,2]
[422314991,1778815842000,-1254.05,0.0002456,2]
[422314969,1778815842000,-150.159,0.00024004,2]
[422314967,1778815842000,-430.0,0.00024,2]
[422314964,1778815842000,-3787.0,0.00024,2]
[422314965,1778815842000,-358.0,0.00024,2]
[422314968,1778815842000,-171.98170696,0.00024001,3]
[422314977,1778815842000,-500.0,0.00024255,2]
[422314979,1778815842000,-2258.3,0.00024324,2]
[422314960,1778815842000,-205.0,0.00024,2]
[422314980,1778815842000,-605.0,0.00024397,2]
[422314986,1778815842000,-1254.05,0.00024558,2]
[422314978,1778815842000,-159.0,0.00024323,3]
[422314985,1778815842000,-1254.05,0.00024556,2]
[422314984,1778815842000,-1254.05,0.00024556,2]
[422314975,1778815842000,-741.95,0.00024174,2]
[422314973,1778815842000,-2000.0,0.00024158,2]
[422314982,1778815842000,-200.0,0.00024526,2]
[422314974,1778815842000,-561.54,0.00024174,2]
[422314976,1778815842000,-3561.49,0.00024174,2]
[422314971,1778815842000,-1223.0,0.00024004,2]
[422314972,1778815842000,-3631.0,0.00024004,2]
[422314981,1778815842000,-166.66,0.00024455,30]
[422314970,1778815842000,-1270.0,0.00024004,2]
[422315023,1778815843000,-2000.0,0.00024992,2]
[422315032,1778815843000,-2000.0,0.00024992,2]
[422315024,1778815843000,-2000.0,0.00024992,2]
[422315026,1778815843000,-2000.0,0.00024992,2]
[422315031,1778815843000,-2000.0,0.00024992,2]
[422315034,1778815843000,-1224.98,0.00025,7]
[422315027,1778815843000,-2000.0,0.00024992,2]
[422315018,1778815843000,-166.66,0.00024959,30]
[422315028,1778815843000,-2000.0,0.00024992,2]
[422315030,1778815843000,-2000.0,0.00024992,2]
[422315029,1778815843000,-2000.0,0.00024992,2]
[422315022,1778815843000,-500.0,0.00024982,2]
[422315020,1778815843000,-500.0,0.0002498,2]
[422315019,1778815843000,-605.0,0.00024959,2]
[422315041,1778815843000,-824.1757212,0.00025,2]
[422315021,1778815843000,-162.38459575,0.0002498,2]
[422315042,1778815843000,-437.79799207,0.00025,2]
[422315025,1778815843000,-2000.0,0.00024992,2]
[422315033,1778815843000,-6245.64661898,0.00025,2]
[422315035,1778815843000,-206.62894597,0.00025,2]
[422315053,1778815843000,-769.89099571,0.00024004,2]
[422315052,1778815843000,-1704.22707964,0.00025193,2]
[422315049,1778815843000,-1756.26465542,0.00025193,2]
[422315050,1778815843000,-5966.8893824,0.00025193,2]
[422315045,1778815843000,-195.89,0.00025176,7]
[422315048,1778815843000,-566475.75554431,0.00025193,2]
[422315046,1778815843000,-14492.4680923,0.00025193,2]
[422315051,1778815843000,-1410.58,0.00025193,2]
[422315044,1778815843000,-233.22273461,0.00025074,2]
[422315040,1778815843000,-372.00224942,0.00025,2]
[422315038,1778815843000,-2945.70135963,0.00025,2]
[422315037,1778815843000,-596.91102821,0.00025,2]
[422315039,1778815843000,-3796.05895688,0.00025,2]
[422315043,1778815843000,-200.0,0.00025074,2]
[422315036,1778815843000,-259.78813989,0.00025,2]
[422315047,1778815843000,-6861.3688755,0.00025193,2]
[422315064,1778815846000,-156.10900429,0.00024004,2]
[422315065,1778815846000,-48987.00275409,0.00025193,2]
[422315074,1778815851000,161.0,0.00026508,120]
[422315076,1778815999000,-198.0,0.00028767,120]
[422315078,1778815999000,-26.8,0.00028767,120]
[422315077,1778815999000,-302.0,0.00028767,120]
[422315082,1778815999000,-500.0,0.00028767,120]
[422315079,1778815999000,-300.0,0.00028767,120]
[422315080,1778815999000,-173.2,0.00028767,120]
[422315081,1778815999000,-500.0,0.00028767,120]
[422315075,1778815999000,-161.0,0.00027833,120]
[422315084,1778815999000,-506.63543828,0.00028767,120]
[422315089,1778815999000,-139.16456172,0.0002925,120]
[422315085,1778815999000,-161.0,0.00029225,120]
[422315086,1778815999000,-13.16456172,0.0002925,120]
[422315087,1778815999000,-136.83543828,0.0002925,120]
[422315088,1778815999000,-152.0,0.0002925,120]
[422315090,1778815999000,-10.83543828,0.0002925,120]
[422315091,1778815999000,-218.0,0.0002925,120]
[422315093,1778815999000,-19.71091628,0.00029586,120]
[422315092,1778815999000,-164.39,0.0002925,120]
[422315083,1778815999000,-500.0,0.00028767,120]
[422315094,1778816000000,-280.28908372,0.00029586,120]
[422315096,1778816000000,-39.19849141,0.000298,120]
[422315095,1778816000000,-292.51242487,0.0002974,120]
[422315097,1778816000000,-118.80150859,0.000298,120]
[422315101,1778816000000,-428.0,0.00029938,120]
[422315099,1778816000000,-236.82578229,0.00029817,120]
[422315100,1778816000000,-11.4857263,0.00029817,120]
[422315102,1778816000000,-60.5142737,0.0003,120]
[422315098,1778816000000,-80.48849141,0.00029817,120]
[422315104,1778816004000,207.48757513,0.00027624,120]
[422315103,1778816004000,292.51242487,0.00027624,120]
[422315106,1778816004000,407.48757513,0.00028641,120]
[422315105,1778816004000,92.51242487,0.00028641,120]
[422315122,1778816116000,262.51242487,0.00025581,120]
[422315123,1778816116000,384.48757513,0.00025581,120]
[422315124,1778816118000,647.0,0.0002686,120]
[422315125,1778816119000,647.0,0.00028203,120]
[422315126,1778816130000,161.0,0.00025714,120]
[422315127,1778816131000,161.0,0.00026999,120]
[422315129,1778816133000,845.14786315,0.00028767,120]
[422315128,1778816133000,161.0,0.00028349,120]
[422315130,1778816146000,152.0,0.00013635,7]
[422315131,1778816413000,452.0,0.00025596,120]
[422315132,1778816414000,452.0,0.00026875,120]
[422315133,1778816507000,1010.67,0.0002739,120]
[422315134,1778816712000,317.0,0.00025602,120]
[422315135,1778816714000,317.0,0.00026882,120]
[422315137,1778817008000,222.0,0.00025604,120]
[422315138,1778817009000,222.0,0.00026884,120]